Cogmind - Beta 14 @@@ ROGUE MODE // 2024.12.14 @ 06:51:20 Player: Longball Result: Destroyed by B-75 Beast with Heavy Machine Gun Performance ------------- Evolutions (3) 1500 Regions Visited (12) 2400 Robots Destroyed (120) 600 Value Destroyed (4750) 4750 Prototype IDs (16) 320 Alien Tech Used (0) 0 Bonus (1603) 1603 TOTAL SCORE: 11173 Bonus ------- High Alert Combat Kills 509 Follower Combat Kills 94 Entered Garrisons 200 Used RIF Installer 500 Met Data Miner 300 Cogmind --------- Core Integrity 0/700 Matter 300/300 Energy 358/375 System Corruption 7% Temperature Warm (142) Movement Walking (190) Ox1 Location -6/Proximity Caves Parts ------- > --- POWER (2) -------- Light Nuclear Core Neutrino Core > --- PROPULSION (5) --- Improved Aluminum Leg Improved Aluminum Leg Improved Aluminum Leg > --- UTILITY (4) ------ Advanced Heat Sink High-capacity Storage Unit Gravity Neutralizer Advanced Targeting Computer > --- WEAPON (2) ------- Gatling Laser Improved Spread Laser > --- INVENTORY (20) --- Compact Wheel Makeshift Flight Unit Large Storage Unit Small Battery (100) Improved Sensor Array Recoil Stabilizer Transmission Jammer Makeshift ECM Suite Reaction Control System Hacking Suite Relay Coupler [NC] (22) Relay Coupler [Sentry] (18) Light EM Pulse Cannon Advanced Assault Cannon Slug Cannon Improved Grenade Launcher Improved Grenade Launcher Impact Mace Peak State ------------ > --- POWER ------------ Deuterium Engine Deuterium Engine > --- PROPULSION ------- Medium Treads Armored Huge Wheel Armored Huge Wheel > --- UTILITY ---------- High-capacity Storage Unit Advanced Targeting Computer System Shield Recalibrator > --- WEAPON ----------- Tesla Rifle Advanced Assault Cannon > --- INVENTORY -------- Aluminum Leg Aluminum Leg Carbon-fiber Leg Improved Heat Sink Advanced Heat Sink Large Storage Unit Small Battery Gravity Neutralizer Gravity Neutralizer Reaction Control System Hacking Suite Relay Coupler [NC] Relay Coupler [Sentry] Field Laser Gatling Laser Improved Light Cannon Improved Grenade Launcher Improved Grenade Launcher Power Maul Axe [Rating: 53] Favorites ----------- Power Light Nuclear Core Engine Deuterium Engine Power Core Light Nuclear Core Propulsion Aluminum Leg Treads Medium Treads Leg Aluminum Leg Wheel Armored Huge Wheel Utility Advanced Targeting Computer Device Advanced Heat Sink Storage High-capacity Storage Unit Processor Advanced Targeting Computer Hackware System Shield Weapon Beam Cannon Energy Gun Field Laser Energy Cannon Beam Cannon Ballistic Gun Makeshift Shrapnel Gun Ballistic Cannon Advanced Assault Cannon Launcher Missile Launcher Impact Weapon Heavy Mace Slashing Weapon Axe Build | -11 -10 -10 -10 -9 -8 -7 -7 -7 -7 -7 -7 -6 ------- Run | Yrd Mat Min Exi Min Mat Fac Gar Fac Low Low Dat Pro Slots Evolved 6 | . . . . . 4 2 . . . . . . Power 1 | . . . . . . 1 . . . . . . Propulsion 3 | . . . . . 2 1 . . . . . . Utility 2 | . . . . . 2 . . . . . . . Weapon . | . . . . . . . . . . . . . Parts Attached 145 | 7 1 8 2 5 33 4 33 27 4 19 . 2 Power 23 | 1 . 1 . 1 3 . 7 6 1 2 . 1 Engine 12 | 1 . 1 . 1 2 . 3 2 1 1 . . Core 11 | . . . . . 1 . 4 4 . 1 . 1 Reactor . | . . . . . . . . . . . . . Propulsion 39 | 2 . 2 . . 10 3 13 3 1 5 . . Treads 3 | . . . . . . 2 . 1 . . . . Leg 32 | 2 . 2 . . 9 1 13 . . 5 . . Wheel 4 | . . . . . 1 . . 2 1 . . . Hover . | . . . . . . . . . . . . . Flight . | . . . . . . . . . . . . . Utility 22 | 2 . 1 2 . 7 . 4 4 1 1 . . Device 13 | 1 . . . . 3 . 3 4 1 1 . . Storage 5 | 1 . . 2 . 1 . 1 . . . . . Processor 3 | . . 1 . . 2 . . . . . . . Hackware 1 | . . . . . 1 . . . . . . . Protection . | . . . . . . . . . . . . . Artifact . | . . . . . . . . . . . . . Weapon 61 | 2 1 4 . 4 13 1 9 14 1 11 . 1 Energy Gun 17 | . . . . 1 5 . 3 6 . 1 . 1 Energy Cannon 10 | . 1 . . 1 2 . . 3 . 3 . . Ballistic Gun 7 | 2 . 3 . 1 1 . . . . . . . Ballistic Cannon 10 | . . . . . . 1 4 2 1 2 . . Launcher 10 | . . 1 . 1 2 . 1 1 . 4 . . Special Weapon . | . . . . . . . . . . . . . Impact Weapon 6 | . . . . . 3 . . 2 . 1 . . Slashing Weapon 1 | . . . . . . . 1 . . . . . Piercing Weapon . | . . . . . . . . . . . . . Special Melee Weapon . | . . . . . . . . . . . . . Unidentified Prototypes 4 | . . . . . 1 . 1 2 . . . . Parts Lost 44 | . . 2 . 1 17 . 11 1 3 5 . 4 Power 9 | . . 1 . . 2 . 3 . 1 1 . 1 Propulsion 14 | . . . . . 5 . 4 . 1 2 . 2 Utility 7 | . . . . . 4 . 1 . 1 1 . . Weapon 14 | . . 1 . 1 6 . 3 1 . 1 . 1 Highest Loss Streak 13 | . . 1 . 1 13 . 4 1 3 3 . 2 To Critical Strikes 1 | . . . . . 1 . . . . . . . Average Slot Usage (%) 94 | . 100 99 100 100 91 98 98 84 81 93 100 97 Engine 8 | . 14 13 14 14 7 5 4 8 6 6 7 . Core 4 | . . . . . 1 7 9 6 7 7 7 12 Treads 1 | . . . . . . 6 2 5 . . . . Leg 25 | . 28 28 28 28 34 31 35 2 . 25 38 38 Wheel 3 | . . . . . . . . 14 21 7 . . Device 7 | . 14 4 . . 11 7 6 7 6 9 15 15 Storage 9 | . 14 14 14 14 9 7 7 7 7 7 7 7 Processor 8 | . . 9 14 14 9 7 7 7 7 7 7 7 Hackware 3 | . . . . . . 7 7 7 7 4 . . Energy Gun 4 | . . . . 2 6 10 6 5 . 2 7 13 Energy Cannon 5 | . 7 14 14 11 4 . . 1 7 6 7 1 Ballistic Gun 4 | . 20 13 14 12 4 . . . . . . . Ballistic Cannon 3 | . . . . . . 3 6 6 6 4 . . Peak Build Rating 53 | 9 9 14 14 14 39 41 43 53 52 51 48 49 Average Rating 32 | 5 9 11 14 13 31 39 37 50 49 45 48 47 On Entrance 28 | . 9 9 14 14 14 36 39 41 52 50 48 48 Naked Turns . | . . . . . . . . . . . . . Heaviest Build 75 | 12 14 15 30 24 38 36 70 70 69 75 75 68 Greatest Support 79 | 20 20 20 20 20 60 70 70 68 72 79 79 79 Greatest Overweight (x) 2 | . . . 1 1 2 . 2 1 1 1 . . Average Overweight (x) . | . . . . . . . . . . . . . Largest Inventory Capacity 20 | 8 8 8 15 10 15 15 20 20 20 20 20 20 Average Capacity 15 | 6 8 8 9 10 14 15 18 20 20 20 20 20 Most Carried 20 | 6 8 8 10 10 15 15 20 20 20 20 19 19 Average Carried 14 | 3 7 7 9 9 12 14 16 19 19 17 19 18 Final Capacity 20 | 8 8 8 10 10 15 15 20 20 20 20 20 20 Final Carried 20 | 6 8 8 10 10 15 15 18 20 20 19 19 18 Class Distribution -------------------- 69% | Mutant 30% | Scavenger-Mutant Dominant Class ---------------- Mutant | -10/Materials Mutant | -10/Mines Mutant | -10/Exiles Mutant | -9/Mines Mutant | -8/Materials Scavenger-Mutant | -7/Factory Scavenger-Mutant | -7/Garrison Mutant | -7/Factory Mutant | -7/Lower Caves Mutant | -7/Lower Caves Mutant | -7/Data Miner Mutant | -6/Proximity Caves Resources | -11 -10 -10 -10 -9 -8 -7 -7 -7 -7 -7 -7 -6 ----------- Run | Yrd Mat Min Exi Min Mat Fac Gar Fac Low Low Dat Pro Matter Collected 3001 | 218 114 158 23 158 501 50 701 523 152 377 . 26 Remotely . | . . . . . . . . . . . . . Salvage Created 4744 | 14 262 230 . 141 1172 65 1802 479 122 368 . 89 Parts 201 | 4 13 15 . 12 51 3 65 23 6 4 . 5 Haulers Intercepted . | . . . . . . . . . . . . . Recyclers Shooed 3 | 1 . . . . 2 . . . . . . . Parts Field Recycled . | . . . . . . . . . . . . . Retrieved Matter . | . . . . . . . . . . . . . Parts Self-Destructed 11 | . . . . . . . . . 5 2 . 4 Prevented 11 | . . . . . . . . . 8 . . 3 Kills | -11 -10 -10 -10 -9 -8 -7 -7 -7 -7 -7 -7 -6 ------- Run | Yrd Mat Min Exi Min Mat Fac Gar Fac Low Low Dat Pro Combat Hostiles Destroyed 116 | . 5 9 . 12 29 1 30 15 5 6 . 4 Melee 4 | . . . . . 2 . 1 . 1 . . . Guns 41 | . 3 2 . 6 13 1 8 5 . . . 3 Cannons 44 | . 2 4 . 4 5 . 19 6 2 1 . 1 AOE 23 | . . 3 . 2 8 . 2 3 . 5 . . Classes Destroyed 14 | 1 4 . . 1 5 . 3 . . . . . Builder 2 | . 1 . . . 1 . . . . . . . Tunneler 2 | 1 . . . 1 . . . . . . . . Recycler 1 | . 1 . . . . . . . . . . . Watcher 3 | . . . . . 2 . . 1 . . . . Swarmer 27 | . 3 4 . 6 . . 3 3 4 . . 4 Cutter 2 | . . . . . . . 2 . . . . . Grunt 54 | . 2 5 . 2 20 . 16 5 . 4 . . Brawler 2 | . . . . . 2 . . . . . . . Duelist 2 | . . . . . . . 1 1 . . . . Protector 1 | . . . . . 1 . . . . . . . Sentry 10 | . . . . . 4 1 3 1 1 . . . Hunter 8 | . . . . . 2 . 4 . . 2 . . Programmer 6 | . . . . . . . 1 5 . . . . Assembled 4 | . . . . 4 . . . . . . . . Best Kill Streak 10 | 1 6 3 . 3 10 1 7 4 4 4 . 4 Combat Bots Only 10 | . 4 3 . 3 10 1 7 3 4 4 . 4 Max Kills in Single Turn 4 | 1 2 3 . 2 4 1 2 3 1 2 . 1 Gunslinging . | . . . . . . . . . . . . . Exploded 4 | . . 3 . 1 4 . 2 3 . 2 . . Melee 1 | . . . . . 1 . 1 . 1 . . . Uniques/NPCs Destroyed . | . . . . . . . . . . . . . Combat | -11 -10 -10 -10 -9 -8 -7 -7 -7 -7 -7 -7 -6 -------- Run | Yrd Mat Min Exi Min Mat Fac Gar Fac Low Low Dat Pro Hostile Shots Fired 771 | . 15 67 . 28 195 9 251 83 57 36 . 30 Missed 234 | . 5 23 . 7 60 5 82 23 13 9 . 7 Damage Taken 7464 | . 80 457 . 228 2289 33 2053 961 554 461 . 348 Core 1375 | . 8 109 . 36 514 6 265 123 135 119 . 60 Absorbed by Shields . | . . . . . . . . . . . . . Regen/Repaired (Parts) 93 | . . . . . 93 . . . . . . . Core Remaining (%) 48 | 100 . . . 38 6 . . . . . . . Volleys Fired 279 | 4 11 27 . 20 73 2 75 38 6 14 . 9 Largest 2 | 2 2 2 . 2 2 2 2 2 2 2 . 2 Hottest 160 | 40 80 80 . 96 155 107 113 128 128 160 . 160 Shots Fired 539 | 8 22 53 . 39 137 4 146 71 12 29 . 18 Gun 272 | 8 14 26 . 18 86 2 71 28 . 3 . 16 Cannon 242 | . 8 26 . 18 45 2 72 39 12 18 . 2 Launcher 25 | . . 1 . 3 6 . 3 4 . 8 . . Special . | . . . . . . . . . . . . . Kinetic 211 | 8 14 26 . 17 24 2 72 34 6 8 . . Thermal 274 | . 8 26 . 19 107 2 46 29 6 13 . 18 Explosive 25 | . . 1 . 3 6 . 3 4 . 8 . . Electromagnetic 29 | . . . . . . . 25 4 . . . . Robot Hit Streak 17 | 3 3 6 . 4 15 15 17 8 3 5 . 12 Robot Miss Streak 5 | 1 4 3 . 5 4 . 2 4 3 2 . 3 Penetration Max . | . . . . . . . . . . . . . Secondary Targets 2 | . . . . . 2 . . . . . . . Max Gunslinging Chain 1 | . . . . . 1 . . . . . . . Shots Hit Robots 393 | 5 8 24 . 24 106 3 123 52 12 20 . 16 Core Hits 264 | 1 7 12 . 21 83 3 69 36 3 13 . 16 Critical Kills 2 | . . . . . . . . 1 . 1 . . Critical Parts Destroyed 4 | . . . . . 2 . . . 1 1 . . Critical Strikes 17 | . . . . . 3 . 9 1 1 3 . . Burn 3 | . . . . . 1 . 2 . . . . . Meltdown 1 | . . . . . . . . 1 . . . . Blast 7 | . . . . . . . 6 . . 1 . . Smash 5 | . . . . . 2 . . . 1 2 . . Sever 1 | . . . . . . . 1 . . . . . Melee Attacks 47 | . . . . . 13 . 20 1 9 4 . . Impact 27 | . . . . . 13 . . 1 9 4 . . Slashing 20 | . . . . . . . 20 . . . . . Piercing . | . . . . . . . . . . . . . Sneak Attacks 2 | . . . . . 1 . . . 1 . . . Combat Hostiles 1 | . . . . . . . . . 1 . . . Follow-up Attacks . | . . . . . . . . . . . . . Damage Inflicted 12456 | 50 152 523 . 595 3239 56 3811 1558 485 1511 . 476 Guns 4085 | 50 64 149 . 191 1507 34 993 637 . 33 . 427 Cannons 3648 | . 88 209 . 141 637 22 1263 755 190 294 . 49 Explosions 2498 | . . 165 . 263 861 . 281 166 . 762 . . Melee 2196 | . . . . . 205 . 1274 . 295 422 . . Ramming 29 | . . . . . 29 . . . . . . . Kinetic 3143 | 50 64 149 . 179 501 22 1263 636 137 142 . . Thermal 4125 | . 88 209 . 153 1643 34 585 699 53 185 . 476 Explosive 2498 | . . 165 . 263 861 . 281 166 . 762 . . Electromagnetic 465 | . . . . . . . 408 57 . . . . Impact 922 | . . . . . 205 . . . 295 422 . . Slashing 1274 | . . . . . . . 1274 . . . . . Piercing . | . . . . . . . . . . . . . Highest Corruption 19 | . . . . . 19 . . 7 7 7 7 7 Average Corruption 8 | . . . . . 18 . . 5 7 7 7 7 Corruption Purged . | . . . . . . . . . . . . . Corruption Blocked . | . . . . . . . . . . . . . Effects 85 | . . . . . 20 . . 24 18 20 3 . Message Errors 27 | . . . . . 8 . . 5 8 5 1 . Matter Fused 26 | . . . . . 4 . . 11 1 8 2 . Heat Flow Errors 7 | . . . . . 2 . . 3 2 . . . Energy Discharges 7 | . . . . . 1 . . 3 . 3 . . Data Loss (minor) 7 | . . . . . 2 . . 1 3 1 . . Data Loss (major) 2 | . . . . . . . . . 1 1 . . Misfires 3 | . . . . . 1 . . . 1 1 . . Alerts 3 | . . . . . . . . 1 1 1 . . Weapon Failures 3 | . . . . . 2 . . . 1 . . . Overload Shots . | . . . . . . . . . . . . . Overflow Damage 505 | . . . . 2 111 . . 46 196 150 . . Projectiles 29 | . . . . . . . . 28 1 . . . Explosions 56 | . . . . 2 15 . . 18 . 21 . . Melee 420 | . . . . . 96 . . . 195 129 . . Knockbacks 19 | . . . . . . . 11 4 . 4 . . Impact 1 | . . . . . . . . . . 1 . . Kinetic 18 | . . . . . . . 11 4 . 3 . . Secondary . | . . . . . . . . . . . . . Self-Inflicted Damage 83 | . . . . . 79 . 4 . . . . . Shots 3 | . . . . . 2 . 1 . . . . . Rammed . | . . . . . . . . . . . . . Targets Rammed 5 | . . . . . 5 . . . . . . . Kicked 5 | . . . . . 5 . . . . . . . Crushed . | . . . . . . . . . . . . . Highest Temperature 495 | . 72 285 . 168 213 5 236 495 186 51 . 130 Average Temperature 67 | . 34 93 . 50 47 5 67 102 62 19 . 43 Received Heat Transfer 2520 | . 6 159 . 36 1116 12 810 243 . 126 . 12 Effects 3 | . . . . . . . . 3 . . . . Shutdowns 1 | . . . . . . . . 1 . . . . Interference 2 | . . . . . . . . 2 . . . . Siege Activations . | . . . . . . . . . . . . . Robots Corrupted 5 | . . . . . 1 . . . 2 2 . . Combat Hostiles 5 | . . . . . 1 . . . 2 2 . . Parts Fried 5 | . . . . . 1 . 2 . 1 1 . . Impact Corruptions 14 | . . . . . 2 . . . 6 6 . . Robots Melted 1 | . . . . . . . . 1 . . . . Combat Hostiles 1 | . . . . . . . . 1 . . . . Parts Melted 13 | . . 1 . . 8 . 2 2 . . . . Heat Transferred 8103 | . 185 444 . 321 3418 74 1406 1020 100 375 . 760 Parts Sabotaged . | . . . . . . . . . . . . . Parts Stolen . | . . . . . . . . . . . . . Parts Stripped . | . . . . . . . . . . . . . Power Chain Reactions . | . . . . . . . . . . . . . Alert | -11 -10 -10 -10 -9 -8 -7 -7 -7 -7 -7 -7 -6 ------- Run | Yrd Mat Min Exi Min Mat Fac Gar Fac Low Low Dat Pro Peak Influence 1129 | 5 163 345 . 142 489 309 1129 607 . . . . Initial 592 | . 3 63 . . 33 218 216 592 . . . . Average 360 | 1 82 172 . 75 147 259 721 436 . . . . Maximum Alert Level 4 | . . 1 . . 2 1 4 2 . . . . Low Security (%) 38 | 100 100 64 . 100 76 . . . . . . . Level 1 23 | . . 35 . . 4 100 16 49 . . . . Level 2 22 | . . . . . 18 . 30 50 . . . . Level 3 11 | . . . . . . . 42 . . . . . Level 4 3 | . . . . . . . 11 . . . . . Level 5 . | . . . . . . . . . . . . . High Security . | . . . . . . . . . . . . . Max Security . | . . . . . . . . . . . . . Squads Dispatched 16 | . 1 2 . . 5 1 . 7 . . . . Investigation 3 | . 1 1 . . 1 . . . . . . . Extermination 4 | . . . . . . . . 4 . . . . Reinforcement 4 | . . . . . 3 1 . . . . . . Assault 2 | . . 1 . . 1 . . . . . . . Garrison 3 | . . . . . . . . 3 . . . . Intercept . | . . . . . . . . . . . . . Searches Triggered . | . . . . . . . . . . . . . Construction Impeded 1 | . . . . . 1 . . . . . . . Haulers Reinforced . | . . . . . . . . . . . . . Active Scanning Responses . | . . . . . . . . . . . . . Cargo Convoy Interrupts . | . . . . . . . . . . . . . Stealth | -11 -10 -10 -10 -9 -8 -7 -7 -7 -7 -7 -7 -6 --------- Run | Yrd Mat Min Exi Min Mat Fac Gar Fac Low Low Dat Pro Distress Signals 2 | . . . . . 2 . . . . . . . Communications Jammed . | . . . . . . . . . . . . . Distress Signals . | . . . . . . . . . . . . . Times Spotted 143 | . 5 12 . 13 44 1 34 19 4 6 . 5 Peak Tracking Total 8 | . 3 3 . 3 8 2 7 4 3 4 . 4 Tactical Retreats 5 | . 1 1 . . 1 . 2 . . . . . Traps | -11 -10 -10 -10 -9 -8 -7 -7 -7 -7 -7 -7 -6 ------- Run | Yrd Mat Min Exi Min Mat Fac Gar Fac Low Low Dat Pro Traps Triggered 11 | . 1 . . . . . 10 . . . . . Indirectly . | . . . . . . . . . . . . . Trap Hack Attempts . | . . . . . . . . . . . . . Triggered . | . . . . . . . . . . . . . Disarmed . | . . . . . . . . . . . . . Reprogrammed . | . . . . . . . . . . . . . Reused . | . . . . . . . . . . . . . Traps Extracted . | . . . . . . . . . . . . . Installed . | . . . . . . . . . . . . . Triggered 6 | . . . . . . . . . 2 . . 4 Machines | -11 -10 -10 -10 -9 -8 -7 -7 -7 -7 -7 -7 -6 ---------- Run | Yrd Mat Min Exi Min Mat Fac Gar Fac Low Low Dat Pro Machines Disabled 5 | . . 1 . . 1 . 1 2 . . . . Max in Single Turn 1 | . . 1 . . 1 . 1 1 . . . . Garrison Access 1 | . . . . . 1 . . . . . . . Machines Repaired . | . . . . . . . . . . . . . Machines Dismantled . | . . . . . . . . . . . . . Machines Sabotaged . | . . . . . . . . . . . . . Overloaded Fab Kills . | . . . . . . . . . . . . . Hacking | -11 -10 -10 -10 -9 -8 -7 -7 -7 -7 -7 -7 -6 --------- Run | Yrd Mat Min Exi Min Mat Fac Gar Fac Low Low Dat Pro Machines Accessed 22 | . . 1 . . 7 3 3 4 . . 4 . Terminals 10 | . . . . . 4 1 3 2 . . . . Fabricators . | . . . . . . . . . . . . . Repair Stations 2 | . . . . . 1 1 . . . . . . Recycling Units 2 | . . . . . 1 . . 1 . . . . Scanalyzers 2 | . . . . . 1 . . 1 . . . . Garrison Access 1 | . . . . . . 1 . . . . . . Total Hacks 70 | . . 1 . . 22 6 6 8 . . 27 . Successful 48 | . . 1 . . 14 2 1 3 . . 27 . Failed 22 | . . . . . 8 4 5 5 . . . . Catastrophic 4 | . . . . . 2 . 2 . . . . . Database Lockouts . | . . . . . . . . . . . . . Manual 12 | . . . . . 6 . . 6 . . . . Terminals 22 | . . . . . 10 1 6 5 . . . . Fabricators . | . . . . . . . . . . . . . Repair Stations 8 | . . . . . 6 2 . . . . . . Recycling Units 4 | . . . . . 2 . . 2 . . . . Scanalyzers 5 | . . . . . 4 . . 1 . . . . Garrison Access 3 | . . . . . . 3 . . . . . . Terminal Hacks 33 | . . 1 . . 3 . 1 1 . . 27 . Record 11 | . . . . . . . . . . . 11 . Part Schematic 8 | . . . . . . . . . . . 8 . Robot Schematic 5 | . . . . . . . . . . . 5 . Prototype ID Bank 4 | . . . . . 1 . . . . . 3 . Open Door 2 | . . 1 . . . . 1 . . . . . Unreport Threat 1 | . . . . . . . . 1 . . . . Locate Traps 1 | . . . . . 1 . . . . . . . Zone Layout 1 | . . . . . 1 . . . . . . . Fabricator Hacks . | . . . . . . . . . . . . . Repair Station Hacks 5 | . . . . . 4 1 . . . . . . Scan Component 2 | . . . . . 2 . . . . . . . Repair 2 | . . . . . 2 . . . . . . . Refit 1 | . . . . . . 1 . . . . . . Recycling Unit Hacks 2 | . . . . . 1 . . 1 . . . . Report Inventory 1 | . . . . . 1 . . . . . . . Retrieve Matter 1 | . . . . . . . . 1 . . . . Scanalyzer 4 | . . . . . 4 . . . . . . . Insert Component 2 | . . . . . 2 . . . . . . . Analyze 2 | . . . . . 2 . . . . . . . Garrison Access Hacks 1 | . . . . . . 1 . . . . . . Unlock Access 1 | . . . . . . 1 . . . . . . Unauthorized Hacks 3 | . . . . . 2 . . 1 . . . . Terminals 3 | . . . . . 2 . . 1 . . . . Track 1 | . . . . . 1 . . . . . . . Botnet 2 | . . . . . 1 . . 1 . . . . Fabricators . | . . . . . . . . . . . . . Repair Stations . | . . . . . . . . . . . . . Recycling Units . | . . . . . . . . . . . . . Scanalyzers . | . . . . . . . . . . . . . Garrison Access . | . . . . . . . . . . . . . Data Cores Recovered . | . . . . . . . . . . . . . Used . | . . . . . . . . . . . . . Hacking Detections 15 | . . . . . 5 3 3 4 . . . . Full Trace Events 1 | . . . . . 1 . . . . . . . Feedback Events . | . . . . . . . . . . . . . Feedback Blocked . | . . . . . . . . . . . . . Robot Schematics Acquired 5 | . . . . . . . . . . . 5 . Robots Built . | . . . . . . . . . . . . . Authchips . | . . . . . . . . . . . . . Time . | . . . . . . . . . . . . . Total Robot Build Rating . | . . . . . . . . . . . . . Part Schematics Acquired 10 | . . . . . 2 . . . . . 8 . Parts Built . | . . . . . . . . . . . . . Authchips . | . . . . . . . . . . . . . Time . | . . . . . . . . . . . . . Total Part Build Rating . | . . . . . . . . . . . . . Parts Repaired 2 | . . . . . 2 . . . . . . . Time 52 | . . . . . 52 . . . . . . . Parts Recycled . | . . . . . . . . . . . . . Recycled Matter . | . . . . . . . . . . . . . Retrieved Matter . | . . . . . . . . . . . . . Retrieved Components . | . . . . . . . . . . . . . Parts Scanalyzed 2 | . . . . . 2 . . . . . . . Part Schematics Acquired 2 | . . . . . 2 . . . . . . . Parts Damaged 1 | . . . . . 1 . . . . . . . Bothacking | -11 -10 -10 -10 -9 -8 -7 -7 -7 -7 -7 -7 -6 ------------ Run | Yrd Mat Min Exi Min Mat Fac Gar Fac Low Low Dat Pro Used RIF Installer 1 | . . . . . . . 1 . . . . . Robots Hacked . | . . . . . . . . . . . . . Non-combat . | . . . . . . . . . . . . . Combat . | . . . . . . . . . . . . . Robot Hacks Applied . | . . . . . . . . . . . . . Relay Couplers Released 4 | . . . . . 1 . 3 . . . . . Machine Destruction 1 | . . . . . 1 . . . . . . . Programmers 3 | . . . . . . . 3 . . . . . Fabnet Peak Effective % . | . . . . . . . . . . . . . Robots Rewired . | . . . . . . . . . . . . . Allies Hacked . | . . . . . . . . . . . . . Hacks Repelled . | . . . . . . . . . . . . . Allies | -11 -10 -10 -10 -9 -8 -7 -7 -7 -7 -7 -7 -6 -------- Run | Yrd Mat Min Exi Min Mat Fac Gar Fac Low Low Dat Pro Total Allies 4 | . . 1 . . . . 2 . . . . 1 Largest Group 2 | . . 1 . . . . 2 . . . . 1 Highest-Rated Group 96 | . . 31 . . . . 56 . . . . 96 Highest-Rated Ally 96 | . . 31 . . . . 31 . . . . 96 Total Orders . | . . . . . . . . . . . . . Ally Attacks 27 | . . 4 . . . . 18 . . . . 5 Total Damage 606 | . . 21 . . . . 391 . . . . 194 Kills 4 | . . 1 . . . . 3 . . . . . Allies Corrupted . | . . . . . . . . . . . . . Allies Melted . | . . . . . . . . . . . . . Intel | -11 -10 -10 -10 -9 -8 -7 -7 -7 -7 -7 -7 -6 ------- Run | Yrd Mat Min Exi Min Mat Fac Gar Fac Low Low Dat Pro Robot Analysis Total . | . . . . . . . . . . . . . Derelict Logs Recovered 1 | . . . . . . . . . . 1 . . Drone Launches . | . . . . . . . . . . . . . Drone Recoveries . | . . . . . . . . . . . . . Exploration | -11 -10 -10 -10 -9 -8 -7 -7 -7 -7 -7 -7 -6 ------------- Run | Yrd Mat Min Exi Min Mat Fac Gar Fac Low Low Dat Pro Turns Passed 9354 | 75 295 873 771 521 1730 360 2024 1252 457 841 94 61 Spaces Moved 5720 | 42 190 501 636 345 728 279 1015 918 395 568 79 24 Core 5 | 5 . . . . . . . . . . . . Treads 2 | . . . . . . . 2 . . . . . Legs 4219 | 37 190 501 636 345 724 279 1013 38 . 353 79 24 Wheels 1494 | . . . . . 4 . . 880 395 215 . . Hover . | . . . . . . . . . . . . . Flight . | . . . . . . . . . . . . . Fastest Speed 50 | 50 120 120 120 120 100 120 120 100 100 100 120 120 Average Speed 126 | 111 120 120 120 125 120 120 158 114 102 132 120 120 Slowest Speed 270 | 120 120 120 190 190 270 120 260 190 115 190 120 120 Overloaded Moves . | . . . . . . . . . . . . . Propulsion Burnouts . | . . . . . . . . . . . . . Robots Hopped . | . . . . . . . . . . . . . Cave-ins Triggered . | . . . . . . . . . . . . . Exploration Rate (%) 47 | 5 29 87 91 59 48 7 78 20 53 65 69 3 Regions Visited 12 Branch Regions 7 Pre-discovered Areas 1 | . . . . . . . . . . . 1 . Known Exits Taken 4 | . . 1 1 1 . 1 . . . . . . Unknown Exits Taken 7 | 1 1 . . . 1 . . 1 1 1 1 . Scrap Searched 7 | . . 1 . 1 . . . . 3 2 . . Spaces Dug 6 | . . . . . 6 . . . . . . . Terrain Destroyed 143 | . . 7 . 36 34 . 17 27 . 22 . . Melee 5 | . . . . . 5 . . . . . . . Projectile 7 | . . . . . 3 . 1 2 . 1 . . AOE 131 | . . 7 . 36 26 . 16 25 . 21 . . Terrain Rammed . | . . . . . . . . . . . . . Walls Destroyed . | . . . . . . . . . . . . . Machines Disabled . | . . . . . . . . . . . . . Actions | -11 -10 -10 -10 -9 -8 -7 -7 -7 -7 -7 -7 -6 --------- Run | Yrd Mat Min Exi Min Mat Fac Gar Fac Low Low Dat Pro Total 7214 | 59 237 721 640 394 1408 302 1255 1047 419 616 78 38 Wait 829 | 1 29 174 . 18 531 10 29 24 4 6 . 3 Move 5707 | 41 189 500 635 344 727 278 1013 917 394 567 78 24 Hop . | . . . . . . . . . . . . . Pick Up 73 | 6 4 5 2 3 19 3 13 12 2 4 . . Fast Attach 55 | 7 1 2 . 2 10 3 15 11 1 2 . 1 Attach 42 | . . 2 . 1 17 1 8 3 2 7 . 1 Detach 15 | . . . . . 4 . 5 4 . 2 . . Swap 48 | . . 4 2 2 6 . 10 13 1 10 . . Drop 64 | . 3 7 1 4 3 5 17 24 . . . . Fire 279 | 4 11 27 . 20 73 2 75 38 6 14 . 9 Melee 47 | . . . . . 13 . 20 1 9 4 . . Ram . | . . . . . . . . . . . . . Kick 5 | . . . . . 5 . . . . . . . Crush . | . . . . . . . . . . . . . Escape Stasis 50 | . . . . . . . 50 . . . . . Rewire . | . . . . . . . . . . . . . Trap . | . . . . . . . . . . . . . Miscellaneous . | . . . . . . . . . . . . . Route ------- -11/Scrapyard -10/Materials (discovered 2 exits: *Min / [Sub]) -10/Mines (discovered 2 exits: *Mat / *Exi) -10/Exiles (discovered 2 exits: *Min x2) -9/Mines -8/Materials -7/Factory -7/Garrison (discovered 3 exits: *Fac x3) -7/Factory -7/Lower Caves -7/Lower Caves (discovered 2 exits: [*Fac] / *Dat) -7/Data Miner -6/Proximity Caves History --------- Turn | Location | Event 9 | -11/Scrapyard | Discovered new exit (range 16) 76 | -11/Scrapyard | Entered Materials 264 | -10/Materials | Discovered new exit (range 8) 283 | -10/Materials | Discovered new exit (range 12) 308 | -10/Materials | Build established: Mutant 371 | -10/Materials | Entered Mines 612 | -10/Mines | Met a Derelict shopkeep closing up shop 725 | -10/Mines | Discovered new exit (range 12) 737 | -10/Mines | Identified exit to Materials 817 | -10/Mines | A weapon hastily lodged in a ceiling crevice suddenly fell to the ground 1086 | -10/Mines | Found a damaged Exp. Sensor Array with a note attached 1089 | -10/Mines | Found Prototype Device 1171 | -10/Mines | Deemed a non-threat by the Exiles lab entrance 1173 | -10/Mines | Discovered new exit (range 5) 1176 | -10/Mines | Identified exit to Exiles 1204 | -10/Mines | Met a Derelict testing a Signal Generator 1244 | -10/Mines | Entered Exiles 1260 | -10/Exiles | Discovered new exit (range 15) 1279 | -10/Exiles | Identified exit to Mines 1303 | -10/Exiles | Met 8R-AWN 1326 | -10/Exiles | Met EX-HEX 1402 | -10/Exiles | Met EX-DEC 1426 | -10/Exiles | Visited The Gauntlet 1619 | -10/Exiles | Met EX-BIN 1860 | -10/Exiles | Discovered exit to Mines (range 15) 2015 | -10/Exiles | Entered Mines 2019 | -9/Mines | Assembled infested the area 2151 | -9/Mines | Found DCF Scrap (13 items) 2270 | -9/Mines | Core integrity fell below 50% 2524 | -9/Mines | Discovered new exit (range 8) 2531 | -9/Mines | Identified exit to Materials 2536 | -9/Mines | Entered Materials 2536 | -8/Materials | Evolved 4 slots: Propulsion x2, Utility x2 2538 | -8/Materials | Identified Exp. Sensor Array 2597 | -8/Materials | Repaired Aluminum Leg 2624 | -8/Materials | Repaired Aluminum Leg 3890 | -8/Materials | Core integrity fell below 50% 3910 | -8/Materials | System corruption reached 10% 3927 | -8/Materials | Core integrity fell below 20% 3958 | -8/Materials | Lost 13 parts (2p4n3u4w) 3960 | -8/Materials | Destroyed 10 combat bots 4251 | -8/Materials | Discovered new exit (range 14) 4266 | -8/Materials | Entered Factory 4266 | -7/Factory | Evolved 2 slots: Power x1, Propulsion x1 4551 | -7/Factory | Build established: Scavenger-Mutant 4625 | -7/Factory | Identified exit to Garrison 4626 | -7/Factory | Entered Garrison 4768 | -7/Garrison | Triggered checkpoint 4805 | -7/Garrison | Rescued a captive Derelict 4807 | -7/Garrison | Rescued a captive Derelict 5206 | -7/Garrison | Destroyed 7 combat bots 5212 | -7/Garrison | Lost 3 parts (1p1n1w) 5232 | -7/Garrison | Triggered checkpoint 5274 | -7/Garrison | Discovered new exit (range 13) 5302 | -7/Garrison | Triggered checkpoint 5558 | -7/Garrison | Triggered checkpoint 5692 | -7/Garrison | Discovered new exit (range 10) 5772 | -7/Garrison | Triggered checkpoint 5856 | -7/Garrison | Lost 4 parts (2n1u1w) 6190 | -7/Garrison | Triggered checkpoint 6437 | -7/Garrison | Discovered new exit (range 12) 6550 | -7/Garrison | Installed Relay Interface Framework 6650 | -7/Garrison | Entered Factory 6995 | -7/Factory | Garrison activated, responded to threat 7175 | -7/Factory | Build established: Mutant 7719 | -7/Factory | Core integrity fell below 50% 7876 | -7/Factory | Discovered new exit (range 16) 7902 | -7/Factory | Entered Lower Caves 7950 | -7/Lower Caves | Lost 3 parts (1p1n1u) 8058 | -7/Lower Caves | Attracted the attention of an 0b10 checkpoint 8287 | -7/Lower Caves | Encountered a Warlord checkpoint 8312 | -7/Lower Caves | Discovered new exit (range 14) 8359 | -7/Lower Caves | Entered another Lower Caves area 8395 | -7/Lower Caves | Discovered new exit (range 5) 8468 | -7/Lower Caves | Encountered a Warlord checkpoint 8615 | -7/Lower Caves | Core integrity fell below 20% 8989 | -7/Lower Caves | Lost 3 parts (1p1u1w) 9042 | -7/Lower Caves | Discovered new exit (range 5) 9200 | -7/Lower Caves | Entered Data Miner 9200 | -7/Data Miner | Discovered new exit (range 6) 9223 | -7/Data Miner | Met Data Miner 9246 | -7/Data Miner | Learned location of Section 7 (-2) 9246 | -7/Data Miner | Acquired the access code to Warlord's prototype stash 9266 | -7/Data Miner | Received God Mode back door access code from Data Miner 9294 | -7/Data Miner | Entered Proximity Caves 9332 | -6/Proximity Caves | Spotted B-75 Beast 9334 | -6/Proximity Caves | Escorted by Enhanced Grunt 9355 | -6/Proximity Caves | Destroyed by B-75 Beast with Heavy Machine Gun Last Messages --------------- GOAL=ESCAPE 09295_ C-30 ARC bursts open, deploying its payload. 09295_ S-27 Virus unfolds itself. 09296_ Deuterium Engine destroyed. 09298_ S-27 Virus destroyed. 09300_ Plasma Cannon destroyed. 09302_ Autogun fries itself beyond repair. 09302_ S-27 Virus destroyed. 09312_ Autogun fries itself beyond repair. 09312_ Lgt. Nuclear Core fries itself beyond repair. 09313_ Acquired Lgt. Nuclear Core. 09314_ Acquired 19 matter. 09315_ Acquired 7 matter. 09317_ Autogun fries itself beyond repair. 09334_ Enhanced Grunt: "Protecting LRC-V3." 09342_ Enhanced Grunt knocked back. 09351_ Enhanced Grunt destroyed. 09355_ Carbon-fiber Leg destroyed. 09355_ Imp. Aluminum Leg destroyed. 09355_ Knocked back. Map ----- +----------------------------------------------------+ | ??????????????????????????????????????????? | | ??????????????????????????????????????????? | | ??????????????????????????????????????????? | | ??????????????????????????????????????????? | | ??????????????????????????????????????????? | | ??????????????????????????????????????????? | | ??????????????????????????????????????????? | | ??????????????????????????????????????????? | | ??????????????????????????????????????????? | | ??????????????????????????????????????????? | | ?????????????????????##???????????????????? | | ????????????????????? #???????????????????? | | ????????????????????? #???????????????????? | | ???????????????????## #####???????????????? | | ???????????????????#" ????????????????? | | ???????????????????# #???#?????????????? | | ????????????????#### #??? #?????????????? | | ??????????????###%## ##?# ##????????????? | | ??????????????# % % ## #????????????? | | ??????????????# ###" #?????????????? | | ??????????????# %#??# #?????????????? | | ??????????????## ##?? #?????????????? | | ???????????????## ### #?????????????? | | ???????????????## %!#;BB #?????????????? | | ???????????????# !%] BB #?????????????? | | ???????????????#% @ #?????????????? | | ???????????????####%###### ;#???????????? | | ??????????????????###????? #???????????? | | ???????????????????????????## ???????????? | | ?????????????????????????????#????????????? | | ??????????????????????????????????????????? | | ??????????????????????????????????????????? | | ??????????????????????????????????????????? | | ??????????????????????????????????????????? | | ??????????????????????????????????????????? | | ??????????????????????????????????????????? | | ??????????????????????????????????????????? | | ??????????????????????????????????????????? | | ??????????????????????????????????????????? | | ??????????????????????????????????????????? | | ??????????????????????????????????????????? | | ??????????????????????????????????????????? | | ??????????????????????????????????????????? | | ??????????????????????????????????????????? | | ??????????????????????????????????????????? | | ??????????????????????????????????????????? | | ??????????????????????????????????????????? | | ??????????????????????????????????????????? | | ??????????????????????????????????????????? | | ??????????????????????????????????????????? | +----------------------------------------------------+ Best States ------------- Heat Dissipation 58 Energy Generation 29 Energy Capacity 490 Matter Stores 300 Matter Capacity 300 Sight Range 16 Robot Scan Range 20 Terrain Scan Range 16 Terrain Scan Density 10 Additional Mass Support 12 Evasion (%) 55 Targeting Accuracy 8 Recoil Reduction 2 Defensive Hacking 10 Item Schematics ----------------- Arm. Huge Wheel | -8/Materials | Scanalyzed Imp. Grenade Launcher | -8/Materials | Scanalyzed Combat Drone Bay | -7/Data Miner | Free Lgt. Regenerative Plating | -7/Data Miner | Free Cld. Cesium-ion Thruster | -7/Data Miner | Free Gravity Neutralizer | -7/Data Miner | Free Scatter Rocket Array | -7/Data Miner | Free Hvy. Treads | -7/Data Miner | Free Imp. Transmission Jammer | -7/Data Miner | Free KE Penetrator | -7/Data Miner | Free Robot Schematics ------------------ Y-54 Guardian | -7/Data Miner | Free M-22 Extractor | -7/Data Miner | Free H-66 Slayer | -7/Data Miner | Free B-48 Gladiator | -7/Data Miner | Free B-60 Warrior | -7/Data Miner | Free Fabricated ------------ Nothing Alien Tech Used ----------------- None Achievements -------------- None Challenges ------------ None Game ------ Seed CryofiberLaserWeb Manual? 0 Play Time 01:26:28 Cumulative 236.1 hours Start 2024.12.01 @ 06:22:50 End 2024.12.14 @ 06:51:20 Sessions 15 Manual Loads 0 Difficulty Rogue Special Mode None Game No. 189 Rogue 189 Adventurer 0 Explorer 0 Win Type - Total 1 Types 1/0/0/0/0/0/0/0/0 Lore% 51 Gallery% 62 Achievement% 43 Wizard Run 0 Options --------- Layout 0 ASCII 0 Keyboard 1 Movement Numpad Keybinds 0 Fullscreen 1 Font 12/Terminus Map View 83x54 Zoom Use 0% Tactical HUD 1 Map Filters NONE Filters NONE Steam 1 RUN: a7f0f9b4-05e4-423d-af17-ad7ca5817a1b